fUST/lending_fUST_20250727
["ID","MTS","AMOUNT","RATE_DAILY","PERIOD"]
[375265236,1753606238336,-339.99999998,0.00019452,2]
[375265238,1753606238346,-460.0,0.00019452,2]
[375265240,1753606238356,-460.0,0.00019452,2]
[375265242,1753606238365,-460.0,0.00019452,2]
[375265244,1753606238375,-460.0,0.00019452,2]
[375265246,1753606238386,-460.0,0.00019452,2]
[375265248,1753606238395,-460.0,0.00019452,2]
[375265250,1753606238405,-460.0,0.00019452,2]
[375265252,1753606238415,-460.0,0.00019452,2]
[375265254,1753606238425,-460.0,0.00019452,2]
[375265256,1753606238434,-460.0,0.00019452,2]
[375265258,1753606238444,-460.0,0.00019452,2]
[375265260,1753606238454,-460.0,0.00019452,2]
[375265262,1753606238463,-460.0,0.00019452,2]
[375265264,1753606238473,-511.31,0.00019452,2]
[375265266,1753606238482,-784.49,0.00019452,2]
[375265268,1753606238492,-460.0,0.00019452,2]
[375265270,1753606238502,-460.0,0.00019452,2]
[375265272,1753606238511,-460.0,0.00019452,2]
[375265274,1753606238521,-460.0,0.00019452,2]
[375265276,1753606238530,-460.0,0.00019452,2]
[375265278,1753606238540,-460.0,0.00019452,2]
[375265280,1753606238549,-460.0,0.00019452,2]
[375265282,1753606238558,-450.68760562,0.00019452,2]
[375265284,1753606238569,-897.18,0.00019452,2]
[375265286,1753606238581,-460.0,0.00019452,2]
[375265288,1753606238591,-460.0,0.00019452,2]
[375265290,1753606238600,-460.0,0.00019452,2]
[375265292,1753606238609,-460.0,0.00019452,2]
[375265294,1753606238620,-5097.47,0.00019452,2]
[375265296,1753606238629,-460.0,0.00019452,2]
[375265298,1753606238640,-460.0,0.00019452,2]
[375265300,1753606238649,-460.0,0.00019452,2]
[375265302,1753606238660,-876.9,0.00019452,2]
[375265304,1753606238669,-460.0,0.00019452,2]
[375265306,1753606238679,-780.02,0.00019452,2]
[375265308,1753606238689,-769.8,0.00019452,2]
[375265310,1753606238698,-460.0,0.00019452,2]
[375265312,1753606238708,-460.0,0.00019452,2]
[375265314,1753606238717,-460.0,0.00019452,2]
[375265316,1753606238726,-460.0,0.00019452,2]
[375265318,1753606238736,-3016.52,0.00019452,2]
[375265320,1753606238745,-460.0,0.00019452,2]
[375265322,1753606238755,-460.0,0.00019452,2]
[375265324,1753606238765,-665.99,0.00019452,2]
[375265326,1753606238775,-566.85,0.00019452,2]
[375265328,1753606238785,-460.0,0.00019452,2]
[375265330,1753606238795,-1525.16,0.00019452,2]
[375265332,1753606238804,-622.11,0.00019452,2]
[375265334,1753606238814,-678.12,0.00019452,2]
[375265336,1753606238823,-460.0,0.00019452,2]
[375265338,1753606238833,-460.0,0.00019452,2]
[375265340,1753606238843,-1783.3,0.00019452,2]
[375265342,1753606238852,-460.0,0.00019452,2]
[375265344,1753606238861,-481.01,0.00019452,2]
[375265346,1753606238871,-1021.56,0.00019452,2]
[375265348,1753606238881,-460.0,0.00019452,2]
[375265350,1753606238891,-2357.86,0.00019452,2]
[375265352,1753606238901,-460.0,0.00019452,2]
[375265354,1753606238910,-460.0,0.00019452,2]
[375265356,1753606238920,-2208.46,0.00019452,2]
[375265358,1753606238929,-460.0,0.00019452,2]
[375265359,1753606238940,-460.0,0.00019452,2]
[375265360,1753606238949,-460.0,0.00019452,2]
[375265361,1753606238958,-460.0,0.00019452,2]
[375265362,1753606238968,-200.18986227,0.00019452,2]
[375265363,1753606238977,-417.54460392,0.00019452,2]
[375265364,1753606238987,-460.0,0.00019452,2]
[375265365,1753606238996,-460.0,0.00019452,2]
[375265366,1753606239008,-460.0,0.00019452,2]
[375265367,1753606239017,-460.0,0.00019452,2]
[375265368,1753606239026,-460.0,0.00019452,2]
[375265369,1753606239036,-460.0,0.00019452,2]
[375265370,1753606239045,-460.0,0.00019452,2]
[375265371,1753606239055,-816.42,0.00019452,2]
[375265372,1753606239064,-460.0,0.00019452,2]
[375265373,1753606239073,-1866.64,0.00019452,2]
[375265374,1753606239082,-460.0,0.00019452,2]
[375265375,1753606239092,-460.0,0.00019452,2]
[375265376,1753606239101,-460.0,0.00019452,2]
[375265377,1753606239110,-460.0,0.00019452,2]
[375265378,1753606239119,-460.0,0.00019452,2]
[375265379,1753606239129,-1760.46,0.00019452,2]
[375265380,1753606239139,-460.0,0.00019452,2]
[375265381,1753606239148,-460.0,0.00019452,2]
[375265382,1753606239158,-1032.78,0.00019452,2]
[375265383,1753606239167,-460.0,0.00019452,2]
[375265384,1753606239176,-460.0,0.00019452,2]
[375265385,1753606239185,-460.0,0.00019452,2]
[375265386,1753606239195,-915.94,0.00019452,2]
[375265387,1753606239204,-460.0,0.00019452,2]
[375265388,1753606239213,-460.0,0.00019452,2]
[375265389,1753606239223,-645.34,0.00019452,2]
[375265390,1753606239234,-2118.2,0.00019452,2]
[375265391,1753606239244,-460.0,0.00019452,2]
[375265392,1753606239253,-310.0,0.00019452,2]
[375265393,1753606239263,-460.0,0.00019452,2]
[375265394,1753606239272,-460.0,0.00019452,2]
[375265395,1753606239282,-460.0,0.00019452,2]
[375265396,1753606239291,-1766.13,0.00019452,2]
[375265397,1753606239301,-460.0,0.00019452,2]
[375265398,1753606239311,-460.0,0.00019452,2]
[375265399,1753606239320,-158.44706921,0.00019452,2]
[375265400,1753606239332,-460.0,0.00019452,2]
[375265402,1753606239341,-460.0,0.00019452,2]
[375265404,1753606239350,-460.0,0.00019452,2]
[375265406,1753606239360,-818.27,0.00019452,2]
[375265408,1753606239369,-503.83,0.00019452,2]
[375265410,1753606239380,-460.0,0.00019452,2]
[375265412,1753606239390,-460.0,0.00019452,2]
[375265414,1753606239399,-460.0,0.00019452,2]
[375265416,1753606239408,-460.0,0.00019452,2]
[375265418,1753606239418,-460.0,0.00019452,2]
[375265420,1753606239427,-460.0,0.00019452,2]
[375265422,1753606239437,-471.03575282,0.00019452,2]
[375265424,1753606239447,-460.0,0.00019452,2]
[375265426,1753606239457,-2250.29,0.00019452,2]
[375265428,1753606239467,-460.0,0.00019452,2]
[375265431,1753606239477,-460.0,0.00019452,2]
[375265434,1753606239487,-460.0,0.00019452,2]
[375265438,1753606239496,-460.0,0.00019452,2]
[375265440,1753606239505,-710.93,0.00019452,2]
[375265444,1753606239515,-460.0,0.00019452,2]
[375265446,1753606239525,-460.0,0.00019452,2]
[375265448,1753606239535,-460.0,0.00019452,2]
[375265450,1753606239545,-460.0,0.00019452,2]
[375265452,1753606239556,-511.87,0.00019452,2]
[375265454,1753606239565,-460.0,0.00019452,2]
[375265456,1753606239576,-1045.99,0.00019452,2]
[375265458,1753606239586,-460.0,0.00019452,2]
[375265460,1753606239597,-460.0,0.00019452,2]
[375265462,1753606239606,-1040.52,0.00019452,2]
[375265464,1753606239616,-460.0,0.00019452,2]
[375265466,1753606239625,-460.0,0.00019452,2]
[375265468,1753606239635,-500.0,0.00019452,2]
[375265470,1753606239645,-502.9609758,0.00019473,2]
[375265472,1753606239655,-500.0,0.00019473,2]
[375265474,1753606239664,-505.93026217,0.00019473,2]
[375265476,1753606239674,-500.0,0.00019473,2]
[375265478,1753606239683,-631.42553644,0.00019489,2]
[375265480,1753606239693,-600.0,0.0001952,2]
[375265482,1753606239703,-151.0,0.000196,2]
[375265484,1753606239712,-151.0,0.000197,2]
[375265486,1753606239722,-500.0,0.00019721,2]
[375265488,1753606239731,-524.8839456,0.00019721,2]
[375265490,1753606239740,-1000.0,0.00019721,2]
[375265492,1753606239751,-460.0,0.00019726,2]
[375265493,1753606239760,-465.11405139,0.00019726,2]
[375265494,1753606239770,-460.0,0.00019726,2]
[375265495,1753606239780,-460.0,0.00019726,2]
[375265496,1753606239790,-256.98136951,0.00019726,2]
[375265497,1753606239799,-460.0,0.00019726,2]
[375265498,1753606239810,-460.0,0.00019726,2]
[375265499,1753606239819,-460.0,0.00019726,2]
[375265500,1753606239828,-460.0,0.00019726,2]
[375265501,1753606239838,-1626.39,0.00019726,2]
[375265502,1753606239847,-460.0,0.00019726,2]
[375265503,1753606239948,-460.0,0.00019726,2]
[375265504,1753606239958,-460.0,0.00019726,2]
[375265505,1753606239967,-460.0,0.00019726,2]
[375265506,1753606239977,-476.44764033,0.00019726,2]
[375265507,1753606239986,-460.0,0.00019726,2]
[375265508,1753606239995,-464.44031236,0.00019726,2]
[375265509,1753606240004,-460.0,0.00019726,2]
[375265511,1753606240013,-460.0,0.00019726,2]
[375265513,1753606240023,-460.0,0.00019726,2]
[375265516,1753606240034,-460.0,0.00019726,2]
[375265518,1753606240043,-460.0,0.00019726,2]
[375265519,1753606240053,-460.0,0.00019726,2]
[375265520,1753606240062,-460.0,0.00019726,2]
[375265522,1753606240073,-175.86896416,0.00019726,2]
[375265524,1753606240082,-460.0,0.00019726,2]
[375265526,1753606240091,-460.0,0.00019726,2]
[375265528,1753606240101,-553.09149556,0.00019726,2]
[375265530,1753606240110,-460.0,0.00019726,2]
[375265532,1753606240119,-460.0,0.00019726,2]
[375265533,1753606240128,-460.0,0.00019726,2]
[375265534,1753606240138,-603.14,0.00019726,2]
[375265535,1753606240148,-460.0,0.00019726,2]
[375265536,1753606240158,-460.0,0.00019726,2]
[375265537,1753606240167,-460.0,0.00019726,2]
[375265538,1753606240177,-460.0,0.00019726,2]
[375265539,1753606240186,-2308.14,0.00019726,2]
[375265540,1753606240195,-199.28404002,0.00019726,2]
[375265541,1753606240205,-460.0,0.00019726,2]
[375265542,1753606240214,-460.0,0.00019726,2]
[375265543,1753606240223,-461.73473481,0.00019726,2]
[375265544,1753606240233,-460.0,0.00019726,2]
[375265545,1753606240244,-460.0,0.00019726,2]
[375265546,1753606240255,-244.9121723,0.00019726,2]
[375265547,1753606240267,-460.0,0.00019726,2]
[375265548,1753606240280,-460.0,0.00019726,2]
[375265549,1753606240290,-460.0,0.00019726,2]
[375265550,1753606240300,-460.0,0.00019726,2]
[375265551,1753606240311,-460.0,0.00019726,2]
[375265552,1753606240320,-460.0,0.00019726,2]
[375265553,1753606240330,-460.0,0.00019726,2]
[375265554,1753606240339,-460.0,0.00019726,2]
[375265555,1753606240349,-460.0,0.00019726,2]
[375265556,1753606240360,-460.0,0.00019726,2]
[375265557,1753606240370,-852.61,0.00019726,2]
[375265558,1753606240379,-460.0,0.00019726,2]
[375265559,1753606240390,-460.0,0.00019726,2]
[375265560,1753606240400,-460.0,0.00019726,2]
[375265561,1753606240409,-482.22,0.00019726,2]
[375265562,1753606240419,-460.0,0.00019726,2]
[375265563,1753606240430,-460.0,0.00019726,2]
[375265564,1753606240440,-460.0,0.00019726,2]
[375265565,1753606240449,-460.0,0.00019726,2]
[375265566,1753606240458,-643.3,0.00019726,2]
[375265567,1753606240467,-460.0,0.00019726,2]
[375265568,1753606240477,-460.0,0.00019726,2]
[375265569,1753606240487,-460.0,0.00019726,2]
[375265570,1753606240496,-922.38,0.00019726,2]
[375265571,1753606240506,-460.0,0.00019726,2]
[375265572,1753606240515,-460.0,0.00019726,2]
[375265573,1753606240525,-460.0,0.00019726,2]
[375265574,1753606240535,-460.0,0.00019726,2]
[375265575,1753606240544,-460.0,0.00019726,2]
[375265576,1753606240554,-218.45602259,0.00019726,2]
[375265577,1753606240563,-460.0,0.00019726,2]
[375265578,1753606240573,-460.0,0.00019726,2]
[375265579,1753606240586,-460.0,0.00019726,2]
[375265580,1753606240595,-460.0,0.00019726,2]
[375265581,1753606240605,-568.81302438,0.00019726,2]
[375265582,1753606240614,-454.03538361,0.00019726,2]
[375265583,1753606240625,-460.0,0.00019726,2]
[375265584,1753606240634,-460.0,0.00019726,2]
[375265585,1753606240644,-460.0,0.00019726,2]
[375265586,1753606240655,-460.0,0.00019726,2]
[375265587,1753606240664,-460.0,0.00019726,2]
[375265588,1753606240673,-460.0,0.00019726,2]
[375265589,1753606240683,-460.0,0.00019726,2]
[375265590,1753606240693,-460.0,0.00019726,2]
[375265591,1753606240702,-460.0,0.00019726,2]
[375265592,1753606240712,-894.08,0.00019726,2]
[375265593,1753606240721,-460.0,0.00019726,2]
[375265594,1753606240730,-460.0,0.00019726,2]
[375265595,1753606240740,-460.0,0.00019726,2]
[375265596,1753606240749,-671.98,0.00019726,2]
[375265597,1753606240758,-460.0,0.00019726,2]
[375265598,1753606240768,-460.0,0.00019726,2]
[375265599,1753606240777,-460.0,0.00019726,2]
[375265600,1753606240786,-463.68114907,0.00019726,2]
[375265601,1753606240795,-460.0,0.00019726,2]
[375265602,1753606240805,-460.0,0.00019726,2]
[375265603,1753606240815,-460.0,0.00019726,2]
[375265604,1753606240824,-460.0,0.00019726,2]
[375265605,1753606240833,-460.0,0.00019726,2]
[375265606,1753606240842,-460.0,0.00019726,2]
[375265607,1753606240851,-460.0,0.00019726,2]
[375265608,1753606240860,-382.89762294,0.00019726,2]
[375265609,1753606240870,-460.0,0.00019726,2]
[375265610,1753606240879,-460.0,0.00019726,2]
[375265611,1753606240891,-863.6,0.00019726,2]
[375265612,1753606240900,-460.0,0.00019726,2]
[375265613,1753606240910,-460.0,0.00019726,2]
[375265614,1753606240920,-460.0,0.00019726,2]
[375265615,1753606240931,-460.0,0.00019726,2]
[375265616,1753606240941,-460.0,0.00019726,2]
[375265617,1753606240951,-460.0,0.00019726,2]
[375265618,1753606240960,-460.0,0.00019726,2]
[375265619,1753606240969,-295.71078926,0.00019726,2]
[375265620,1753606240980,-460.0,0.00019726,2]
[375265621,1753606240989,-460.0,0.00019726,2]
[375265622,1753606240999,-460.0,0.00019726,2]
[375265623,1753606241008,-460.0,0.00019726,2]
[375265624,1753606241018,-460.0,0.00019726,2]
[375265625,1753606241027,-1727.09,0.00019726,2]
[375265626,1753606241037,-460.0,0.00019726,2]
[375265627,1753606241047,-460.0,0.00019726,2]
[375265628,1753606241057,-460.0,0.00019726,2]
[375265629,1753606241066,-460.0,0.00019726,2]
[375265630,1753606241076,-460.0,0.00019726,2]
[375265631,1753606241085,-460.0,0.00019726,2]
[375265632,1753606241095,-460.0,0.00019726,2]
[375265633,1753606241104,-569.57,0.00019726,2]
[375265634,1753606241113,-460.0,0.00019726,2]
[375265635,1753606241122,-460.0,0.00019726,2]
[375265636,1753606241131,-460.0,0.00019726,2]
[375265637,1753606241141,-484.99673636,0.00019726,2]
[375265638,1753606241150,-460.0,0.00019726,2]
[375265639,1753606241159,-460.0,0.00019726,2]
[375265640,1753606241169,-460.0,0.00019726,2]
[375265641,1753606241178,-511.31,0.00019726,2]
[375265642,1753606241187,-460.0,0.00019726,2]
[375265643,1753606241196,-460.0,0.00019726,2]
[375265644,1753606241206,-784.49,0.00019726,2]
[375265645,1753606241215,-460.0,0.00019726,2]
[375265646,1753606241224,-460.0,0.00019726,2]
[375265647,1753606241234,-460.0,0.00019726,2]
[375265648,1753606241243,-460.0,0.00019726,2]
[375265649,1753606241252,-897.18,0.00019726,2]
[375265650,1753606241263,-460.0,0.00019726,2]
[375265651,1753606241272,-460.0,0.00019726,2]
[375265652,1753606241281,-460.0,0.00019726,2]
[375265653,1753606241290,-460.0,0.00019726,2]
[375265654,1753606241300,-5097.47,0.00019726,2]
[375265655,1753606241309,-302.0766747,0.00019726,2]
[375265656,1753606241318,-460.0,0.00019726,2]
[375265657,1753606241327,-470.18179991,0.00019726,2]
[375265658,1753606241336,-876.9,0.00019726,2]
[375265659,1753606241345,-460.0,0.00019726,2]
[375265660,1753606241355,-780.02,0.00019726,2]
[375265661,1753606241365,-769.8,0.00019726,2]
[375265662,1753606241374,-460.0,0.00019726,2]
[375265663,1753606241384,-182.65687795,0.00019726,2]
[375265664,1753606241519,-277.34312205,0.00019726,2]
[375265665,1753606241529,-99.04292649,0.00019726,2]
[375265666,1753606241542,-360.95707351,0.00019726,2]
[375265667,1753606241551,-460.0,0.00019726,2]
[375265668,1753606241560,-978.50557587,0.00019726,2]
[375265669,1753606241577,-2038.01442413,0.00019726,2]
[375265670,1753606241586,-460.0,0.00019726,2]
[375265671,1753606241595,-460.0,0.00019726,2]
[375265672,1753606241604,-665.99,0.00019726,2]
[375265673,1753606241613,-417.62682866,0.00019726,2]
[375265674,1753606242335,-460.0,0.00019178,2]
[375265675,1753606242345,-460.0,0.00019178,2]
[375265676,1753606242355,-517.46,0.00019178,2]
[375265677,1753606242364,-202.82789587,0.00019178,2]
[375265678,1753606242374,-460.0,0.00019452,2]
[375265679,1753606242386,-460.0,0.00019452,2]
[375265680,1753606242396,-42.37317134,0.00019726,2]
[375265681,1753606242406,-135.20355706,0.00019726,2]
[375265682,1753606242422,-431.64644294,0.00019726,2]
[375265683,1753606242432,-802.13791015,0.00019726,2]
[375265694,1753606242980,-361.19748624,0.00019178,2]
[375265697,1753606243011,-98.80251376,0.00019178,2]
[375265698,1753606243022,-460.0,0.00019178,2]
[375265699,1753606243031,-500.0,0.00019351,2]
[375265700,1753606243041,-354.03965153,0.00019351,2]
[375265701,1753606243051,-500.0,0.00019351,2]
[375265702,1753606243061,-460.0,0.00019452,2]
[375265703,1753606243071,-723.02208985,0.00019726,2]
[375265704,1753606243081,-622.11,0.00019726,2]
[375265705,1753606243090,-678.12,0.00019726,2]
[375265707,1753606243099,-460.0,0.00019726,2]
[375265708,1753606243109,-460.0,0.00019726,2]
[375265709,1753606243118,-1783.3,0.00019726,2]
[375265710,1753606243127,-460.0,0.00019726,2]
[375265712,1753606243138,-481.01,0.00019726,2]
[375265714,1753606243147,-1021.56,0.00019726,2]
[375265715,1753606243157,-460.0,0.00019726,2]
[375265717,1753606243166,-460.0,0.00019726,2]
[375265718,1753606243176,-2357.86,0.00019726,2]
[375265720,1753606243185,-460.0,0.00019726,2]
[375265722,1753606243194,-2208.46,0.00019726,2]
[375265723,1753606243203,-460.0,0.00019726,2]
[375265724,1753606243212,-460.0,0.00019726,2]
[375265726,1753606243221,-460.0,0.00019726,2]
[375265727,1753606243230,-460.0,0.00019726,2]
[375265729,1753606243240,-460.0,0.00019726,2]
[375265730,1753606243249,-96.21460865,0.00019726,2]
[375265732,1753606243351,-289.99037079,0.00019178,2]
[375265753,1753606245859,-222.02962921,0.00019178,2]
[375265755,1753606245869,-290.70270784,0.00019178,2]
[375265760,1753606245916,-169.29729216,0.00019178,2]
[375265762,1753606245925,-512.02,0.00019452,2]
[375265764,1753606245934,-363.78539135,0.00019726,2]
[375265765,1753606245943,-460.0,0.00019726,2]
[375265767,1753606245952,-460.0,0.00019726,2]
[375265769,1753606245962,-460.0,0.00019726,2]
[375265771,1753606245971,-460.0,0.00019726,2]
[375265773,1753606245980,-816.42,0.00019726,2]
[375265775,1753606245989,-460.0,0.00019726,2]
[375265776,1753606245998,-1866.64,0.00019726,2]
[375265778,1753606246008,-460.0,0.00019726,2]
[375265780,1753606246017,-460.0,0.00019726,2]
[375265782,1753606246026,-586.95903718,0.00019726,2]
[375265784,1753606246035,-460.0,0.00019726,2]
[375265785,1753606246044,-460.0,0.00019726,2]
[375265787,1753606246054,-1760.46,0.00019726,2]
[375265789,1753606246063,-460.0,0.00019726,2]
[375265791,1753606246072,-325.02232723,0.00019726,2]
[375265800,1753606246168,-1032.78,0.00019726,2]
[375265801,1753606246177,-460.0,0.00019726,2]
[375265803,1753606246187,-595.97525119,0.00019726,2]
[375265805,1753606246196,-460.0,0.00019726,2]
[375265807,1753606246205,-915.94,0.00019726,2]
[375265809,1753606246214,-460.0,0.00019726,2]
[375265810,1753606246223,-645.34,0.00019726,2]
[375265812,1753606246232,-460.0,0.00019726,2]
[375265814,1753606246242,-2118.2,0.00019726,2]
[375265816,1753606246251,-460.0,0.00019726,2]
[375265818,1753606246260,-460.0,0.00019726,2]
[375265820,1753606246270,-460.0,0.00019726,2]
[375265821,1753606246279,-460.0,0.00019726,2]
[375265823,1753606246289,-460.0,0.00019726,2]
[375265824,1753606246298,-460.0,0.00019726,2]
[375265825,1753606246307,-460.0,0.00019726,2]
[375265827,1753606246316,-460.0,0.00019726,2]
[375265829,1753606246325,-460.0,0.00019726,2]
[375265831,1753606246334,-818.27,0.00019726,2]
[375265833,1753606246344,-503.83,0.00019726,2]
[375265835,1753606246353,-460.0,0.00019726,2]
[375265837,1753606246362,-460.0,0.00019726,2]
[375265839,1753606246371,-460.0,0.00019726,2]
[375265841,1753606246381,-460.0,0.00019726,2]
[375265843,1753606246394,-460.0,0.00019726,2]
[375265845,1753606246404,-460.0,0.00019726,2]
[375265847,1753606246417,-460.0,0.00019726,2]
[375265848,1753606246427,-2250.29,0.00019726,2]
[375265849,1753606246437,-460.0,0.00019726,2]
[375265850,1753606246446,-460.0,0.00019726,2]
[375265851,1753606246456,-710.93,0.00019726,2]
[375265852,1753606246465,-460.0,0.00019726,2]
[375265853,1753606246474,-460.0,0.00019726,2]
[375265854,1753606246484,-460.0,0.00019726,2]
[375265855,1753606246493,-460.0,0.00019726,2]
[375265856,1753606246503,-511.87,0.00019726,2]
[375265857,1753606246512,-460.0,0.00019726,2]
[375265858,1753606246521,-1045.99,0.00019726,2]
[375265859,1753606246531,-460.0,0.00019726,2]
[375265860,1753606246541,-460.0,0.00019726,2]
[375265861,1753606246550,-510.00747553,0.00019726,2]
[375265862,1753606246565,-530.51252447,0.00019726,2]
[375265863,1753606246574,-460.0,0.00019726,2]
[375265864,1753606246584,-460.0,0.00019726,2]
[375265865,1753606246593,-358.5,0.00019726,2]
[375265866,1753606246604,-341.45719802,0.00019726,2]
[375265867,1753606246614,-512.02,0.00019726,2]
[375265868,1753606246623,-500.0,0.00019726,2]
[375265869,1753606246633,-500.0,0.00019773,2]
[375265870,1753606246644,-231.27315472,0.00019773,2]
[375265871,1753606246654,-500.0,0.00019773,2]
[375265872,1753606246664,-500.0,0.00019773,2]
[375265873,1753606246675,-500.0,0.00019773,2]
[375265874,1753606246685,-224.59161566,0.00019773,2]
[375265875,1753606246694,-28.47553724,0.00019773,2]
[375265876,1753606257022,150.0,0.00018479,2]
[375265877,1753606266064,4608.73937595,0.0001885,2]
[375265878,1753606282551,391.26062405,0.0001885,2]
[375265879,1753606332431,150.0,0.00018413,2]
[375265880,1753606406310,150.0,0.00018341,2]
[375265881,1753606482135,150.0,0.0001833,2]
[375265882,1753606519148,495.84,0.00023,30]
[375265883,1753606584110,718.1339699,0.00018177,2]
[375265884,1753606696082,150.0,0.00018328,2]
[375265885,1753606782161,150.0,0.00018224,2]
[375265886,1753606792405,5000.0,0.0001885,2]
[375265887,1753606800786,5000.0,0.0001885,2]
[375265888,1753606861694,150.0,0.00018348,2]
[375265889,1753606937427,150.0,0.00018353,2]
[375265891,1753606949208,312.555065,0.00013699,2]
[375265892,1753606958991,2046.454626,0.0001885,2]
[375265893,1753606959014,2953.545374,0.0001885,2]
[375265894,1753606967000,1952.95808075,0.0001885,2]
[375265895,1753606985340,3047.04191925,0.0001885,2]
[375265896,1753607015103,150.0,0.00018297,2]
[375265897,1753607088540,150.0,0.00018301,2]
[375265898,1753607096323,205.868259,0.00018175,2]
[375265899,1753607136094,-500.0,0.000189,2]
[375265900,1753607136117,-500.0,0.000189,2]
[375265901,1753607136139,-214.70774288,0.000189,2]
[375265902,1753607136164,-372.36013402,0.000189,2]
[375265903,1753607136187,-1200.0,0.00019167,2]
[375265904,1753607136208,-42.59842168,0.00019168,3]
[375265905,1753607164908,150.0,0.00018683,2]
[375265906,1753607235087,-125.72157832,0.00019168,3]
[375265907,1753607235108,-368.39127687,0.00019168,3]
[375265908,1753607241606,150.0,0.00018684,2]
[375265909,1753607243218,-136.56872313,0.00019168,3]
[375265910,1753607243238,-300.0,0.00019172,2]
[375265911,1753607243261,-300.0,0.00019172,2]
[375265912,1753607243281,-300.0,0.00019172,2]
[375265913,1753607243302,-300.0,0.00019172,2]
[375265914,1753607243324,-1200.0,0.00019172,2]
[375265915,1753607243344,-180.81324929,0.00019172,2]
[375265916,1753607243365,-113.96000254,0.00019173,2]
[375265918,1753607256875,315.7812952,0.00018358,2]
[375265919,1753607318696,150.0,0.00018644,2]
[375265921,1753607335784,3804.49874471,0.0001885,2]
[375265922,1753607344417,1255.73933604,0.0001885,2]
[375265923,1753607394930,150.0,0.00018584,2]
[375265959,1753607432113,-248.24008935,0.000189,2]
[375265961,1753607432123,-500.0,0.00019173,2]
[375265963,1753607432133,-500.0,0.00019173,2]
[375265964,1753607432143,-19.06775149,0.00019173,2]
[375265966,1753607432156,-480.93224851,0.00019173,2]
[375265968,1753607432166,-55.01566281,0.00019175,2]
[375265970,1753607432178,-244.98433719,0.00019175,2]
[375265972,1753607432188,-260.0,0.00019176,2]
[375265973,1753607432197,-300.0,0.00019176,2]
[375265974,1753607432207,-299.70452616,0.00019176,2]
[375265976,1753607432223,-900.29547384,0.00019176,2]
[375265978,1753607432232,-302.26452616,0.00019177,2]
[375265980,1753607432244,-10.62319286,0.00019177,2]
[375265982,1753607432254,-376.01499851,0.00019177,2]
[375265983,1753607432263,-197.94283208,0.00019177,2]
[375265985,1753607432273,-500.0,0.00019177,2]
[375265988,1753607432282,-500.0,0.00019177,2]
[375265990,1753607432292,-500.0,0.00019177,2]
[375265992,1753607432302,-302.01113084,0.00019177,2]
[375265994,1753607432311,-500.0,0.00019177,2]
[375265995,1753607432320,-403.84001693,0.00019177,2]
[375265997,1753607432329,-200.63352493,0.00019177,2]
[375265999,1753607432339,-211.27596571,0.00019177,2]
[375266002,1753607432359,-402.4356209,0.00019177,2]
[375266004,1753607432370,-284.33639637,0.00019177,2]